[Event "Titled Tuesday Blitz August 16 Early 2022"]
[White "Orzech, Dominik"]
[Black "Voege, Tobias"]
[WhiteFideId "1115065"]
[BlackFideId "1270513"]
[WhiteElo "2272"]
[BlackElo "2360"]
[Result "0-1"]
[Round "06"]
[TimeControl "180+2"]
[Date "2022.08.18"]
[WhiteClock "0:00:00"]
[BlackClock "0:00:00"]

1. d4 {[%clk 0:00:00]}  Nf6 {[%clk 0:00:00]} 2. Nf3 {[%clk 0:00:00]}  g6 {[%clk 0:00:00]} 3. c4 {[%clk 0:00:00]}  Bg7 {[%clk 0:00:00]} 4. Nc3 {[%clk 0:00:00]}  O-O {[%clk 0:00:00]} 5. Bg5 {[%clk 0:00:00]}  d6 {[%clk 0:00:00]} 6. e3 {[%clk 0:00:00]}  c5 {[%clk 0:00:00]} 7. Be2 {[%clk 0:00:00]}  Nbd7 {[%clk 0:00:00]} 8. O-O {[%clk 0:00:00]}  h6 {[%clk 0:00:00]} 9. Bh4 {[%clk 0:00:00]}  Rb8 {[%clk 0:00:00]} 10. Qc2 {[%clk 0:00:00]}  a6 {[%clk 0:00:00]} 11. Rad1 {[%clk 0:00:00]}  cxd4 {[%clk 0:00:00]} 12. Nxd4 {[%clk 0:00:00]}  Nc5 {[%clk 0:00:00]} 13. b4 {[%clk 0:00:00]}  Ne6 {[%clk 0:00:00]} 14. Nb3 {[%clk 0:00:00]}  b6 {[%clk 0:00:00]} 15. c5 {[%clk 0:00:00]}  bxc5 {[%clk 0:00:00]} 16. bxc5 {[%clk 0:00:00]}  Rxb3 {[%clk 0:00:00]} 17. axb3 {[%clk 0:00:00]}  Nxc5 {[%clk 0:00:00]} 18. b4 {[%clk 0:00:00]}  Bf5 {[%clk 0:00:00]} 19. Qa2 {[%clk 0:00:00]}  Nce4 {[%clk 0:00:00]} 20. Nxe4 {[%clk 0:00:00]}  Nxe4 {[%clk 0:00:00]} 21. Qxa6 {[%clk 0:00:00]}  g5 {[%clk 0:00:00]} 22. Bg3 {[%clk 0:00:00]}  Nc3 {[%clk 0:00:00]} 23. Rd2 {[%clk 0:00:00]}  Qb8 {[%clk 0:00:00]} 24. Qa3 {[%clk 0:00:00]}  Rc8 {[%clk 0:00:00]} 25. Qb3 {[%clk 0:00:00]}  Be6 {[%clk 0:00:00]} 26. Qa3 {[%clk 0:00:00]}  Nxe2+ {[%clk 0:00:00]} 27. Rxe2 {[%clk 0:00:00]}  Rc3 {[%clk 0:00:00]} 28. Qa5 {[%clk 0:00:00]}  Bc4 {[%clk 0:00:00]} 29. Ra2 {[%clk 0:00:00]}  Bxa2 {[%clk 0:00:00]} 30. Qxa2 {[%clk 0:00:00]}  Qxb4 {[%clk 0:00:00]} 31. Qa8+ {[%clk 0:00:00]}  Kh7 {[%clk 0:00:00]} 32. Qe8 {[%clk 0:00:00]}  Qc4 {[%clk 0:00:00]} 33. h3 {[%clk 0:00:00]}  Bf6 {[%clk 0:00:00]} 34. Rb1 {[%clk 0:00:00]}  Rc1+ {[%clk 0:00:00]} 35. Rxc1 {[%clk 0:00:00]}  Qxc1+ {[%clk 0:00:00]} 36. Kh2 {[%clk 0:00:00]}  Kg7 {[%clk 0:00:00]} 37. Qd7 {[%clk 0:00:00]}  Qb2 {[%clk 0:00:00]} 38. Qf5 {[%clk 0:00:00]}  Qc3 {[%clk 0:00:00]} 39. Qe4 {[%clk 0:00:00]}  Qc8 {[%clk 0:00:00]} 40. Qd5 {[%clk 0:00:00]}  Qe6 {[%clk 0:00:00]} 41. Qc6 {[%clk 0:00:00]}  d5 {[%clk 0:00:00]} 42. Qc7 {[%clk 0:00:00]}  d4 {[%clk 0:00:00]} 43. exd4 {[%clk 0:00:00]}  Bxd4 {[%clk 0:00:00]} 44. Qb8 {[%clk 0:00:00]}  Bf6 {[%clk 0:00:00]} 45. Qc7 {[%clk 0:00:00]}  Qf5 {[%clk 0:00:00]} 46. Qb8 {[%clk 0:00:00]}  e5 {[%clk 0:00:00]} 47. Qd6 {[%clk 0:00:00]}  h5 {[%clk 0:00:00]} 48. f3 {[%clk 0:00:00]}  h4 {[%clk 0:00:00]} 49. Bf2 {[%clk 0:00:00]}  e4 {[%clk 0:00:00]} 50. Bd4 {[%clk 0:00:00]}  exf3 {[%clk 0:00:00]} 51. Bxf6+ {[%clk 0:00:00]}  Qxf6 {[%clk 0:00:00]} 52. gxf3 {[%clk 0:00:00]}  Qxd6+ {[%clk 0:00:00]} 0-1


[Site "https://www.chess.com"]

[Event "Titled Tuesday Blitz August 16 Early 2022"]
[White "Perez Gormaz, Matias"]
[Black "Mika, Tomasz"]
[WhiteFideId "3406342"]
[BlackFideId "1132970"]
[WhiteElo "2390"]
[BlackElo "2157"]
[Result "1-0"]
[Round "06"]
[TimeControl "180+2"]
[Date "2022.08.18"]
[WhiteClock "0:00:00"]
[BlackClock "0:00:00"]

1. e4 {[%clk 0:00:00]}  c6 {[%clk 0:00:00]} 2. Nf3 {[%clk 0:00:00]}  d5 {[%clk 0:00:00]} 3. Nc3 {[%clk 0:00:00]}  Bg4 {[%clk 0:00:00]} 4. h3 {[%clk 0:00:00]}  Bxf3 {[%clk 0:00:00]} 5. Qxf3 {[%clk 0:00:00]}  e6 {[%clk 0:00:00]} 6. Be2 {[%clk 0:00:00]}  Bc5 {[%clk 0:00:00]} 7. O-O {[%clk 0:00:00]}  Nd7 {[%clk 0:00:00]} 8. exd5 {[%clk 0:00:00]}  cxd5 {[%clk 0:00:00]} 9. Rd1 {[%clk 0:00:00]}  Ne7 {[%clk 0:00:00]} 10. d4 {[%clk 0:00:00]}  Bb6 {[%clk 0:00:00]} 11. Be3 {[%clk 0:00:00]}  O-O {[%clk 0:00:00]} 12. Bd3 {[%clk 0:00:00]}  Rc8 {[%clk 0:00:00]} 13. Ne2 {[%clk 0:00:00]}  Ng6 {[%clk 0:00:00]} 14. c3 {[%clk 0:00:00]}  a6 {[%clk 0:00:00]} 15. g3 {[%clk 0:00:00]}  Ba7 {[%clk 0:00:00]} 16. h4 {[%clk 0:00:00]}  b5 {[%clk 0:00:00]} 17. h5 {[%clk 0:00:00]}  Ne7 {[%clk 0:00:00]} 18. a4 {[%clk 0:00:00]}  b4 {[%clk 0:00:00]} 19. Bxa6 {[%clk 0:00:00]}  Rb8 {[%clk 0:00:00]} 20. Bd3 {[%clk 0:00:00]}  e5 {[%clk 0:00:00]} 21. Bb5 {[%clk 0:00:00]}  e4 {[%clk 0:00:00]} 22. Qf4 {[%clk 0:00:00]}  Nf6 {[%clk 0:00:00]} 23. h6 {[%clk 0:00:00]}  Ng6 {[%clk 0:00:00]} 24. Qf5 {[%clk 0:00:00]}  Rb6 {[%clk 0:00:00]} 25. cxb4 {[%clk 0:00:00]}  Qe7 {[%clk 0:00:00]} 26. hxg7 {[%clk 0:00:00]}  Kxg7 {[%clk 0:00:00]} 27. Nc3 {[%clk 0:00:00]}  Rd8 {[%clk 0:00:00]} 28. Kg2 {[%clk 0:00:00]}  Qxb4 {[%clk 0:00:00]} 29. Rh1 {[%clk 0:00:00]}  Re6 {[%clk 0:00:00]} 30. Bh6+ {[%clk 0:00:00]}  Kg8 {[%clk 0:00:00]} 31. Bg5 {[%clk 0:00:00]}  Rdd6 {[%clk 0:00:00]} 32. Ne2 {[%clk 0:00:00]}  Qxb2 {[%clk 0:00:00]} 33. Rac1 {[%clk 0:00:00]}  e3 {[%clk 0:00:00]} 34. Rc8+ {[%clk 0:00:00]}  Nf8 {[%clk 0:00:00]} 35. Bxf6 {[%clk 0:00:00]}  Rxf6 {[%clk 0:00:00]} 36. Qxh7# {[%clk 0:00:00]} 1-0


[Site "https://www.chess.com"]

[Event "Titled Tuesday Blitz August 16 Early 2022"]
[White "Pham, Khoi"]
[Black "Malyi, Viacheslav"]
[WhiteFideId "1054988"]
[BlackFideId "14123983"]
[WhiteElo "2376"]
[BlackElo "2190"]
[Result "0-1"]
[Round "06"]
[TimeControl "180+2"]
[Date "2022.08.18"]
[WhiteClock "0:00:00"]
[BlackClock "0:00:00"]

1. d4 {[%clk 0:00:00]}  Nf6 {[%clk 0:00:00]} 2. c4 {[%clk 0:00:00]}  e6 {[%clk 0:00:00]} 3. Nc3 {[%clk 0:00:00]}  d5 {[%clk 0:00:00]} 4. cxd5 {[%clk 0:00:00]}  exd5 {[%clk 0:00:00]} 5. Bg5 {[%clk 0:00:00]}  Be7 {[%clk 0:00:00]} 6. e3 {[%clk 0:00:00]}  c6 {[%clk 0:00:00]} 7. Bd3 {[%clk 0:00:00]}  Nbd7 {[%clk 0:00:00]} 8. Nge2 {[%clk 0:00:00]}  Nh5 {[%clk 0:00:00]} 9. Bxe7 {[%clk 0:00:00]}  Qxe7 {[%clk 0:00:00]} 10. Qc2 {[%clk 0:00:00]}  g6 {[%clk 0:00:00]} 11. O-O-O {[%clk 0:00:00]}  Nb6 {[%clk 0:00:00]} 12. Kb1 {[%clk 0:00:00]}  Be6 {[%clk 0:00:00]} 13. Nc1 {[%clk 0:00:00]}  O-O-O {[%clk 0:00:00]} 14. a4 {[%clk 0:00:00]}  Kb8 {[%clk 0:00:00]} 15. a5 {[%clk 0:00:00]}  Nd7 {[%clk 0:00:00]} 16. a6 {[%clk 0:00:00]}  b6 {[%clk 0:00:00]} 17. N1e2 {[%clk 0:00:00]}  c5 {[%clk 0:00:00]} 18. dxc5 {[%clk 0:00:00]}  Nxc5 {[%clk 0:00:00]} 19. Nd4 {[%clk 0:00:00]}  Rc8 {[%clk 0:00:00]} 20. Bb5 {[%clk 0:00:00]}  Qd6 {[%clk 0:00:00]} 21. Ka1 {[%clk 0:00:00]}  Nf6 {[%clk 0:00:00]} 22. Qe2 {[%clk 0:00:00]}  Nfe4 {[%clk 0:00:00]} 23. Rc1 {[%clk 0:00:00]}  Rc7 {[%clk 0:00:00]} 24. Rhd1 {[%clk 0:00:00]}  Rhc8 {[%clk 0:00:00]} 25. f3 {[%clk 0:00:00]}  Nxc3 {[%clk 0:00:00]} 26. Rxc3 {[%clk 0:00:00]}  Bd7 {[%clk 0:00:00]} 27. Rdc1 {[%clk 0:00:00]}  Ne6 {[%clk 0:00:00]} 28. Bxd7 {[%clk 0:00:00]}  Qxd7 {[%clk 0:00:00]} 29. Qb5 {[%clk 0:00:00]}  Qxb5 {[%clk 0:00:00]} 30. Nxb5 {[%clk 0:00:00]}  Rxc3 {[%clk 0:00:00]} 31. Rxc3 {[%clk 0:00:00]}  Nc5 {[%clk 0:00:00]} 32. Kb1 {[%clk 0:00:00]}  Nxa6 {[%clk 0:00:00]} 33. Rxc8+ {[%clk 0:00:00]}  Kxc8 {[%clk 0:00:00]} 34. Nxa7+ {[%clk 0:00:00]}  Kb7 {[%clk 0:00:00]} 35. Nb5 {[%clk 0:00:00]}  Kc6 {[%clk 0:00:00]} 36. Nd4+ {[%clk 0:00:00]}  Kd6 {[%clk 0:00:00]} 37. Kc2 {[%clk 0:00:00]}  Nc5 {[%clk 0:00:00]} 38. Kc3 {[%clk 0:00:00]}  Ne6 {[%clk 0:00:00]} 39. Nb5+ {[%clk 0:00:00]}  Kc5 {[%clk 0:00:00]} 40. Nd4 {[%clk 0:00:00]}  Nxd4 {[%clk 0:00:00]} 41. exd4+ {[%clk 0:00:00]}  Kb5 {[%clk 0:00:00]} 42. Kb3 {[%clk 0:00:00]}  Ka5 {[%clk 0:00:00]} 43. Ka3 {[%clk 0:00:00]}  Kb5 {[%clk 0:00:00]} 44. Kb3 {[%clk 0:00:00]}  f6 {[%clk 0:00:00]} 45. g3 {[%clk 0:00:00]}  h6 {[%clk 0:00:00]} 46. h3 {[%clk 0:00:00]}  Ka5 {[%clk 0:00:00]} 47. Ka3 {[%clk 0:00:00]}  h5 {[%clk 0:00:00]} 48. h4 {[%clk 0:00:00]}  Kb5 {[%clk 0:00:00]} 49. Kb3 {[%clk 0:00:00]}  g5 {[%clk 0:00:00]} 50. f4 {[%clk 0:00:00]}  gxf4 {[%clk 0:00:00]} 51. gxf4 {[%clk 0:00:00]}  f5 {[%clk 0:00:00]} 52. Kc3 {[%clk 0:00:00]}  Ka4 {[%clk 0:00:00]} 53. b3+ {[%clk 0:00:00]}  Ka3 {[%clk 0:00:00]} 54. Kc2 {[%clk 0:00:00]}  b5 {[%clk 0:00:00]} 55. Kc3 {[%clk 0:00:00]}  b4+ {[%clk 0:00:00]} 56. Kc2 {[%clk 0:00:00]}  Ka2 {[%clk 0:00:00]} 57. Kd3 {[%clk 0:00:00]}  Kxb3 {[%clk 0:00:00]} 58. Kd2 {[%clk 0:00:00]}  Kc4 {[%clk 0:00:00]} 59. Ke3 {[%clk 0:00:00]}  Kc3 {[%clk 0:00:00]} 0-1


[Site "https://www.chess.com"]

[Event "Titled Tuesday Blitz August 16 Early 2022"]
[White "Piesik, Piotr"]
[Black "Molina, Roberto Junio Brito"]
[WhiteFideId "1136194"]
[BlackFideId "2109450"]
[WhiteElo "2221"]
[BlackElo "2403"]
[Result "1-0"]
[Round "06"]
[TimeControl "180+1"]
[Date "2022.08.16"]
[WhiteClock "0:01:41"]
[BlackClock "0:01:24"]

1. Nf3 {[%clk 0:03:00]}  d5 {[%clk 0:02:59]} 2. g3 {[%clk 0:03:00]}  Nf6 {[%clk 0:02:59]} 3. Bg2 {[%clk 0:03:00]}  e6 {[%clk 0:02:56]} 4. O-O {[%clk 0:03:01]}  Be7 {[%clk 0:02:57]} 5. d3 {[%clk 0:03:02]}  c5 {[%clk 0:02:55]} 6. Nbd2 {[%clk 0:03:02]}  b6 {[%clk 0:02:55]} 7. e4 {[%clk 0:03:02]}  Bb7 {[%clk 0:02:54]} 8. Qe2 {[%clk 0:03:02]}  Nc6 {[%clk 0:02:54]} 9. c3 {[%clk 0:03:02]}  Qc7 {[%clk 0:02:53]} 10. Re1 {[%clk 0:03:00]}  h6 {[%clk 0:02:51]} 11. h4 {[%clk 0:02:56]}  O-O-O {[%clk 0:02:49]} 12. a3 {[%clk 0:02:54]}  Kb8 {[%clk 0:02:43]} 13. b4 {[%clk 0:02:54]}  Ka8 {[%clk 0:02:40]} 14. Nb3 {[%clk 0:02:39]}  c4 {[%clk 0:02:24]} 15. dxc4 {[%clk 0:02:38]}  Nxe4 {[%clk 0:02:21]} 16. Bb2 {[%clk 0:02:24]}  Bf6 {[%clk 0:02:17]} 17. Rac1 {[%clk 0:02:17]}  Rhe8 {[%clk 0:02:15]} 18. Nbd4 {[%clk 0:02:05]}  Nxd4 {[%clk 0:02:01]} 19. cxd4 {[%clk 0:02:05]}  dxc4 {[%clk 0:02:01]} 20. Rxc4 {[%clk 0:02:04]}  Qe7 {[%clk 0:01:56]} 21. Ne5 {[%clk 0:01:58]}  Nd6 {[%clk 0:01:56]} 22. Nc6 {[%clk 0:01:50]}  Qc7 {[%clk 0:01:24]} 23. Nxd8 {[%clk 0:01:48]}  Qxc4 {[%clk 0:01:24]} 24. Nxb7 {[%clk 0:01:41]} 1-0


[Site "https://www.chess.com"]

[Event "Titled Tuesday Blitz August 16 Early 2022"]
[White "Pinheiro, Iung Alicio de O."]
[Black "Namitbir Singh Walia"]
[WhiteFideId "2104350"]
[BlackFideId "35071068"]
[WhiteElo "2283"]
[BlackElo "1664"]
[Result "1/2-1/2"]
[Round "06"]
[TimeControl "180+2"]
[Date "2022.08.18"]
[WhiteClock "0:00:00"]
[BlackClock "0:00:00"]

1. e4 {[%clk 0:00:00]}  c5 {[%clk 0:00:00]} 2. Nf3 {[%clk 0:00:00]}  Nc6 {[%clk 0:00:00]} 3. c3 {[%clk 0:00:00]}  d5 {[%clk 0:00:00]} 4. exd5 {[%clk 0:00:00]}  Qxd5 {[%clk 0:00:00]} 5. d4 {[%clk 0:00:00]}  Nf6 {[%clk 0:00:00]} 6. Na3 {[%clk 0:00:00]}  cxd4 {[%clk 0:00:00]} 7. Nb5 {[%clk 0:00:00]}  Qd7 {[%clk 0:00:00]} 8. Bf4 {[%clk 0:00:00]}  Nd5 {[%clk 0:00:00]} 9. Bg3 {[%clk 0:00:00]}  a6 {[%clk 0:00:00]} 10. Nbxd4 {[%clk 0:00:00]}  Nxd4 {[%clk 0:00:00]} 11. Qxd4 {[%clk 0:00:00]}  Nf6 {[%clk 0:00:00]} 12. Qe3 {[%clk 0:00:00]}  e6 {[%clk 0:00:00]} 13. Ne5 {[%clk 0:00:00]}  Qa4 {[%clk 0:00:00]} 14. Bc4 {[%clk 0:00:00]}  Be7 {[%clk 0:00:00]} 15. Bb3 {[%clk 0:00:00]}  Qa5 {[%clk 0:00:00]} 16. O-O {[%clk 0:00:00]}  O-O {[%clk 0:00:00]} 17. Rad1 {[%clk 0:00:00]}  h6 {[%clk 0:00:00]} 18. Rfe1 {[%clk 0:00:00]}  Qc5 {[%clk 0:00:00]} 19. Qf3 {[%clk 0:00:00]}  a5 {[%clk 0:00:00]} 20. Rd4 {[%clk 0:00:00]}  Rd8 {[%clk 0:00:00]} 21. Rh4 {[%clk 0:00:00]}  Rd2 {[%clk 0:00:00]} 22. Bf4 {[%clk 0:00:00]}  Rxb2 {[%clk 0:00:00]} 23. Bxh6 {[%clk 0:00:00]}  gxh6 {[%clk 0:00:00]} 24. Rxh6 {[%clk 0:00:00]}  Kg7 {[%clk 0:00:00]} 25. Qf4 {[%clk 0:00:00]}  Qxf2+ {[%clk 0:00:00]} 26. Qxf2 {[%clk 0:00:00]}  Rxf2 {[%clk 0:00:00]} 27. Kxf2 {[%clk 0:00:00]}  Kxh6 {[%clk 0:00:00]} 28. Nxf7+ {[%clk 0:00:00]}  Kg7 {[%clk 0:00:00]} 29. Ng5 {[%clk 0:00:00]}  a4 {[%clk 0:00:00]} 30. Bxe6 {[%clk 0:00:00]}  Bxe6 {[%clk 0:00:00]} 31. Nxe6+ {[%clk 0:00:00]}  Kf7 {[%clk 0:00:00]} 32. Ng5+ {[%clk 0:00:00]}  Kf8 {[%clk 0:00:00]} 33. Ne6+ {[%clk 0:00:00]}  Kg8 {[%clk 0:00:00]} 34. Ng5 {[%clk 0:00:00]}  Ng4+ {[%clk 0:00:00]} 35. Kg3 {[%clk 0:00:00]}  Bxg5 {[%clk 0:00:00]} 36. Kxg4 {[%clk 0:00:00]}  Bf6 {[%clk 0:00:00]} 37. Rb1 {[%clk 0:00:00]}  Rb8 {[%clk 0:00:00]} 38. c4 {[%clk 0:00:00]}  Bd4 {[%clk 0:00:00]} 39. h4 {[%clk 0:00:00]}  b6 {[%clk 0:00:00]} 40. Kh5 {[%clk 0:00:00]}  Bc5 {[%clk 0:00:00]} 41. g4 {[%clk 0:00:00]}  Re8 {[%clk 0:00:00]} 42. g5 {[%clk 0:00:00]}  Re4 {[%clk 0:00:00]} 43. Rd1 {[%clk 0:00:00]}  Kg7 {[%clk 0:00:00]} 44. Rd7+ {[%clk 0:00:00]}  Re7 {[%clk 0:00:00]} 45. Rd5 {[%clk 0:00:00]}  Rc7 {[%clk 0:00:00]} 46. Kg4 {[%clk 0:00:00]}  Be7 {[%clk 0:00:00]} 47. Rd4 {[%clk 0:00:00]}  Bc5 {[%clk 0:00:00]} 48. Re4 {[%clk 0:00:00]}  Re7 {[%clk 0:00:00]} 49. Rf4 {[%clk 0:00:00]}  Re1 {[%clk 0:00:00]} 50. h5 {[%clk 0:00:00]}  Rg1+ {[%clk 0:00:00]} 51. Kf5 {[%clk 0:00:00]}  Be3 {[%clk 0:00:00]} 52. h6+ {[%clk 0:00:00]}  Kh7 {[%clk 0:00:00]} 53. Re4 {[%clk 0:00:00]}  Rxg5+ {[%clk 0:00:00]} 54. Kf6 {[%clk 0:00:00]}  Bc1 {[%clk 0:00:00]} 55. Re7+ {[%clk 0:00:00]}  Kxh6 {[%clk 0:00:00]} 56. Re8 {[%clk 0:00:00]}  Rg6+ {[%clk 0:00:00]} 57. Kf5 {[%clk 0:00:00]}  Rg5+ {[%clk 0:00:00]} 58. Kf6 {[%clk 0:00:00]}  Rg7 {[%clk 0:00:00]} 59. Re1 {[%clk 0:00:00]}  Bg5+ {[%clk 0:00:00]} 60. Kf5 {[%clk 0:00:00]}  Rc7 {[%clk 0:00:00]} 61. Rh1+ {[%clk 0:00:00]}  Kg7 {[%clk 0:00:00]} 62. Kxg5 {[%clk 0:00:00]}  Rc5+ {[%clk 0:00:00]} 63. Kf4 {[%clk 0:00:00]}  Rxc4+ {[%clk 0:00:00]} 64. Ke5 {[%clk 0:00:00]}  Rb4 {[%clk 0:00:00]} 65. Rc1 {[%clk 0:00:00]}  Rb2 {[%clk 0:00:00]} 66. Rc6 {[%clk 0:00:00]}  b5 {[%clk 0:00:00]} 67. a3 {[%clk 0:00:00]}  Rb3 {[%clk 0:00:00]} 68. Rb6 {[%clk 0:00:00]}  b4 {[%clk 0:00:00]} 69. axb4 {[%clk 0:00:00]}  a3 {[%clk 0:00:00]} 70. Ra6 {[%clk 0:00:00]}  Rxb4 {[%clk 0:00:00]} 71. Rxa3 {[%clk 0:00:00]}  Rb7 {[%clk 0:00:00]} 72. Ke6 {[%clk 0:00:00]}  Rb6+ {[%clk 0:00:00]} 73. Kf5 {[%clk 0:00:00]}  Rb5+ {[%clk 0:00:00]} 74. Ke6 {[%clk 0:00:00]}  Rb6+ {[%clk 0:00:00]} 75. Ke5 {[%clk 0:00:00]}  Rb5+ {[%clk 0:00:00]} 76. Kd6 {[%clk 0:00:00]}  Rb6+ {[%clk 0:00:00]} 77. Kc7 {[%clk 0:00:00]}  Rg6 {[%clk 0:00:00]} 78. Rd3 {[%clk 0:00:00]}  Rf6 {[%clk 0:00:00]} 79. Rg3+ {[%clk 0:00:00]}  Kf7 {[%clk 0:00:00]} 80. Rd3 {[%clk 0:00:00]}  Re6 {[%clk 0:00:00]} 81. Rf3+ {[%clk 0:00:00]}  Rf6 {[%clk 0:00:00]} 82. Rh3 {[%clk 0:00:00]}  Rg6 {[%clk 0:00:00]} 83. Kd7 {[%clk 0:00:00]}  Kf6 {[%clk 0:00:00]} 84. Rf3+ {[%clk 0:00:00]}  Kg5 {[%clk 0:00:00]} 85. Rf1 {[%clk 0:00:00]}  Kh5 {[%clk 0:00:00]} 86. Ke7 {[%clk 0:00:00]}  Ra6 {[%clk 0:00:00]} 87. Kf7 {[%clk 0:00:00]}  Kg5 {[%clk 0:00:00]} 88. Rg1+ {[%clk 0:00:00]}  Kf5 {[%clk 0:00:00]} 89. Rb1 {[%clk 0:00:00]}  Ra7+ {[%clk 0:00:00]} 90. Kg8 {[%clk 0:00:00]}  Ke6 {[%clk 0:00:00]} 91. Rb6+ {[%clk 0:00:00]}  Kf5 {[%clk 0:00:00]} 92. Rb1 {[%clk 0:00:00]}  Kf6 {[%clk 0:00:00]} 93. Rf1+ {[%clk 0:00:00]}  Kg6 {[%clk 0:00:00]} 94. Rg1+ {[%clk 0:00:00]}  Kh5 {[%clk 0:00:00]} 95. Kf8 {[%clk 0:00:00]}  Kh6 {[%clk 0:00:00]} 96. Ke8 {[%clk 0:00:00]}  Kh5 {[%clk 0:00:00]} 97. Kd8 {[%clk 0:00:00]}  Kh6 {[%clk 0:00:00]} 98. Kc8 {[%clk 0:00:00]}  Rg7 {[%clk 0:00:00]} 99. Rh1+ {[%clk 0:00:00]}  Kg6 {[%clk 0:00:00]} 100. Rf1 {[%clk 0:00:00]}  Kh6 {[%clk 0:00:00]} 101. Kd8 {[%clk 0:00:00]}  Kg6 {[%clk 0:00:00]} 102. Ke8 {[%clk 0:00:00]}  Ra7 {[%clk 0:00:00]} 103. Rg1+ {[%clk 0:00:00]}  Kf6 {[%clk 0:00:00]} 104. Rb1 {[%clk 0:00:00]}  Ke6 {[%clk 0:00:00]} 105. Rb6+ {[%clk 0:00:00]}  Ke5 {[%clk 0:00:00]} 106. Rh6 {[%clk 0:00:00]}  Kf5 {[%clk 0:00:00]} 107. Rb6 {[%clk 0:00:00]}  Ke5 {[%clk 0:00:00]} 108. Kd8 {[%clk 0:00:00]}  Rh7 {[%clk 0:00:00]} 109. Kc8 {[%clk 0:00:00]}  Kd5 {[%clk 0:00:00]} 110. Rg6 {[%clk 0:00:00]}  Ke5 {[%clk 0:00:00]} 111. Kd8 {[%clk 0:00:00]}  Kf5 {[%clk 0:00:00]} 112. Ra6 {[%clk 0:00:00]}  Ke5 {[%clk 0:00:00]} 113. Ra5+ {[%clk 0:00:00]}  Kd6 {[%clk 0:00:00]} 114. Ra6+ {[%clk 0:00:00]}  Kc5 {[%clk 0:00:00]} 115. Ra1 {[%clk 0:00:00]}  Kb6 {[%clk 0:00:00]} 116. Rb1+ {[%clk 0:00:00]}  Kc6 {[%clk 0:00:00]} 117. Rg1 {[%clk 0:00:00]}  Ra7 {[%clk 0:00:00]} 118. Rg6+ {[%clk 0:00:00]}  Kd5 {[%clk 0:00:00]} 119. Kc8 {[%clk 0:00:00]}  Ke5 {[%clk 0:00:00]} 120. Kb8 {[%clk 0:00:00]}  Rh7 {[%clk 0:00:00]} 121. Rg1 {[%clk 0:00:00]} 1/2-1/2


[Site "https://www.chess.com"]

[Event "Titled Tuesday Blitz August 16 Early 2022"]
[White "Pourkashiyan, Atousa"]
[Black "Lehtosaari, Mauri"]
[WhiteFideId "12502014"]
[BlackFideId "501999"]
[WhiteElo "2322"]
[BlackElo "2200"]
[Result "1-0"]
[Round "06"]
[TimeControl "180+2"]
[Date "2022.08.18"]
[WhiteClock "0:00:00"]
[BlackClock "0:00:00"]

1. e4 {[%clk 0:00:00]}  e6 {[%clk 0:00:00]} 2. d4 {[%clk 0:00:00]}  d5 {[%clk 0:00:00]} 3. Nd2 {[%clk 0:00:00]}  dxe4 {[%clk 0:00:00]} 4. Nxe4 {[%clk 0:00:00]}  Nd7 {[%clk 0:00:00]} 5. Nf3 {[%clk 0:00:00]}  Ngf6 {[%clk 0:00:00]} 6. Bd3 {[%clk 0:00:00]}  Nxe4 {[%clk 0:00:00]} 7. Bxe4 {[%clk 0:00:00]}  Nf6 {[%clk 0:00:00]} 8. Bd3 {[%clk 0:00:00]}  c5 {[%clk 0:00:00]} 9. O-O {[%clk 0:00:00]}  Bd7 {[%clk 0:00:00]} 10. Bg5 {[%clk 0:00:00]}  cxd4 {[%clk 0:00:00]} 11. Nxd4 {[%clk 0:00:00]}  Be7 {[%clk 0:00:00]} 12. Re1 {[%clk 0:00:00]}  O-O {[%clk 0:00:00]} 13. c3 {[%clk 0:00:00]}  Rc8 {[%clk 0:00:00]} 14. Qf3 {[%clk 0:00:00]}  Bc6 {[%clk 0:00:00]} 15. Qh3 {[%clk 0:00:00]}  g6 {[%clk 0:00:00]} 16. Nxe6 {[%clk 0:00:00]}  fxe6 {[%clk 0:00:00]} 17. Qxe6+ {[%clk 0:00:00]}  Rf7 {[%clk 0:00:00]} 18. Bxf6 {[%clk 0:00:00]}  Bxf6 {[%clk 0:00:00]} 19. Bc4 {[%clk 0:00:00]}  Be8 {[%clk 0:00:00]} 20. Rad1 {[%clk 0:00:00]}  Qc7 {[%clk 0:00:00]} 21. Bb3 {[%clk 0:00:00]}  Kg7 {[%clk 0:00:00]} 22. g3 {[%clk 0:00:00]}  Rd8 {[%clk 0:00:00]} 23. h4 {[%clk 0:00:00]}  Rxd1 {[%clk 0:00:00]} 24. Rxd1 {[%clk 0:00:00]}  Qe7 {[%clk 0:00:00]} 25. Qg4 {[%clk 0:00:00]}  Rf8 {[%clk 0:00:00]} 26. h5 {[%clk 0:00:00]}  Bc6 {[%clk 0:00:00]} 27. hxg6 {[%clk 0:00:00]}  hxg6 {[%clk 0:00:00]} 28. Bc2 {[%clk 0:00:00]}  g5 {[%clk 0:00:00]} 29. Qf5 {[%clk 0:00:00]}  Kg8 {[%clk 0:00:00]} 30. Qg6+ {[%clk 0:00:00]}  Qg7 {[%clk 0:00:00]} 31. Qf5 {[%clk 0:00:00]}  Be7 {[%clk 0:00:00]} 32. Bb3+ {[%clk 0:00:00]}  Kh8 {[%clk 0:00:00]} 33. Qh3+ {[%clk 0:00:00]} 1-0


[Site "https://www.chess.com"]

[Event "Titled Tuesday Blitz August 16 Early 2022"]
[White "Proudian, Armen"]
[Black "Buscar, Michael"]
[WhiteFideId "2130734"]
[BlackFideId "2603616"]
[WhiteElo "2431"]
[BlackElo "2041"]
[Result "1-0"]
[Round "06"]
[TimeControl "180+2"]
[Date "2022.08.18"]
[WhiteClock "0:00:00"]
[BlackClock "0:00:00"]

1. e4 {[%clk 0:00:00]}  c5 {[%clk 0:00:00]} 2. Nf3 {[%clk 0:00:00]}  Nc6 {[%clk 0:00:00]} 3. d4 {[%clk 0:00:00]}  cxd4 {[%clk 0:00:00]} 4. Nxd4 {[%clk 0:00:00]}  Nf6 {[%clk 0:00:00]} 5. Nc3 {[%clk 0:00:00]}  e5 {[%clk 0:00:00]} 6. Ndb5 {[%clk 0:00:00]}  h6 {[%clk 0:00:00]} 7. a4 {[%clk 0:00:00]}  d6 {[%clk 0:00:00]} 8. Be3 {[%clk 0:00:00]}  Be7 {[%clk 0:00:00]} 9. Bc4 {[%clk 0:00:00]}  O-O {[%clk 0:00:00]} 10. Qd2 {[%clk 0:00:00]}  Be6 {[%clk 0:00:00]} 11. Bxe6 {[%clk 0:00:00]}  fxe6 {[%clk 0:00:00]} 12. O-O-O {[%clk 0:00:00]}  Ne8 {[%clk 0:00:00]} 13. Kb1 {[%clk 0:00:00]}  Qa5 {[%clk 0:00:00]} 14. Bxh6 {[%clk 0:00:00]}  gxh6 {[%clk 0:00:00]} 15. Qxh6 {[%clk 0:00:00]}  Ng7 {[%clk 0:00:00]} 16. Nxd6 {[%clk 0:00:00]}  Rxf2 {[%clk 0:00:00]} 17. Nc4 {[%clk 0:00:00]}  Qc5 {[%clk 0:00:00]} 18. Ne3 {[%clk 0:00:00]}  Nd4 {[%clk 0:00:00]} 19. Ng4 {[%clk 0:00:00]}  Rxg2 {[%clk 0:00:00]} 20. Rhg1 {[%clk 0:00:00]}  Rxg1 {[%clk 0:00:00]} 21. Rxg1 {[%clk 0:00:00]}  Nf3 {[%clk 0:00:00]} 22. Rg3 {[%clk 0:00:00]}  Rf8 {[%clk 0:00:00]} 23. Qg6 {[%clk 0:00:00]}  Bg5 {[%clk 0:00:00]} 24. Nh6+ {[%clk 0:00:00]}  Bxh6 {[%clk 0:00:00]} 25. Qxh6 {[%clk 0:00:00]}  Qe7 {[%clk 0:00:00]} 26. Rg2 {[%clk 0:00:00]}  Qf6 {[%clk 0:00:00]} 27. Qh3 {[%clk 0:00:00]}  Nd4 {[%clk 0:00:00]} 28. Ka2 {[%clk 0:00:00]}  Rf7 {[%clk 0:00:00]} 29. Qd3 {[%clk 0:00:00]}  Qe7 {[%clk 0:00:00]} 30. Ne2 {[%clk 0:00:00]}  Nxe2 {[%clk 0:00:00]} 31. Qxe2 {[%clk 0:00:00]}  Qc7 {[%clk 0:00:00]} 32. b3 {[%clk 0:00:00]}  Kf8 {[%clk 0:00:00]} 33. Kb2 {[%clk 0:00:00]}  Ke8 {[%clk 0:00:00]} 34. h4 {[%clk 0:00:00]}  Kd8 {[%clk 0:00:00]} 35. h5 {[%clk 0:00:00]}  Ne8 {[%clk 0:00:00]} 36. h6 {[%clk 0:00:00]}  Qd7 {[%clk 0:00:00]} 37. Qh5 {[%clk 0:00:00]}  Kc8 {[%clk 0:00:00]} 38. Rg8 {[%clk 0:00:00]}  Kc7 {[%clk 0:00:00]} 39. Qxe5+ {[%clk 0:00:00]}  Qd6 {[%clk 0:00:00]} 40. Qc3+ {[%clk 0:00:00]}  Qc6 {[%clk 0:00:00]} 41. Rxe8 {[%clk 0:00:00]}  Qxc3+ {[%clk 0:00:00]} 42. Kxc3 {[%clk 0:00:00]}  Rh7 {[%clk 0:00:00]} 43. Rxe6 {[%clk 0:00:00]}  Kd7 {[%clk 0:00:00]} 44. Rg6 {[%clk 0:00:00]}  Kd8 {[%clk 0:00:00]} 45. Kd4 {[%clk 0:00:00]}  b6 {[%clk 0:00:00]} 46. Rg8+ {[%clk 0:00:00]}  Ke7 {[%clk 0:00:00]} 47. Rg7+ {[%clk 0:00:00]}  Rxg7 {[%clk 0:00:00]} 48. hxg7 {[%clk 0:00:00]} 1-0


[Site "https://www.chess.com"]